bitfinex/quotes_ETHUSD_20251111
["timestamp","ask_amount","ask_price","bid_price","bid_amount"]
[1762820315857,2.80080663,3570.4,3570.1,0.01]
[1762820316154,7.6096825,3570.4,3570.1,0.01]
[1762820316384,8.03965059,3570.4,3570.1,0.01]
[1762820316989,4.06067553,3570.2,3570.1,1e-08]
[1762820317174,4.24170744,3570.2,3570.1,1e-08]
[1762820317377,4.69980744,3570.2,3570.1,1e-08]
[1762820317583,5.78668204,3570.2,3570.1,1e-08]
[1762820317781,5.75855013,3570.2,3570.1,1e-08]
[1762820320088,5.75855013,3570.2,3570.1,0.00200001]
[1762820320382,5.75955013,3570.2,3570.1,0.00200001]
[1762820324935,8.84473385,3570.2,3570.1,0.00200001]
[1762820326131,2.80127738,3569.8,3569.7,1e-08]
[1762820326332,6.24939301,3569.8,3569.7,1e-08]
[1762820326531,6.6792611,3569.8,3569.7,1e-08]
[1762820326742,7.9389731,3569.8,3569.7,1e-08]
[1762820327823,4.39578938,3569.8,3569.7,1e-08]
[1762820328023,5.86916541,3569.8,3569.7,1e-08]
[1762820330015,5.67146541,3569.8,3569.7,1e-08]
[1762820331040,5.53436541,3569.8,3569.7,1e-08]
[1762820331239,4.06098938,3569.8,3569.7,0.47140001]
[1762820332083,2.80127738,3569.8,3569.7,0.96450001]
[1762820332210,0.001,3570.2,3569.8,0.5]
[1762820332415,2.80204057,3570.2,3570.1,0.6649]
[1762820332636,2.80204057,3570.2,3570.1,1.1649]
[1762820332810,0.001,3570.2,3570.1,1.658]
[1762820333234,2.80196353,3570.2,3570.1,1.658]
[1762820333824,0.001,3570.2,3570.1,1.658]
[1762820334031,2.80196353,3570.2,3570.1,1.658]
[1762820334424,0.001,3570.2,3570.1,0.6649]
[1762820334763,0.001,3570.2,3570.1,1.658]
[1762820334930,0.001,3570.2,3570.1,1.3238]
[1762820335119,0.001,3570.2,3570.1,5.01230726]
[1762820335319,0.001,3570.2,3570.1,5.41781126]
[1762820335513,0.001,3570.2,3570.1,5.74695148]
[1762820336054,0.001,3570.2,3570.1,5.03034598]
[1762820336253,0.001,3570.2,3570.1,2.229304]
[1762820336551,0.001,3570.2,3570.1,1.658]
[1762820336757,0.001,3570.2,3570.1,1.1649]
[1762820336931,0.001,3570.2,3570.1,1.1384]
[1762820337338,2.80196353,3570.2,3570.1,1.1384]
[1762820337631,2.80196353,3570.2,3570.1,0.6649]
[1762820338243,2.80196353,3570.2,3569.7,0.47350001]
[1762820338443,2.80126268,3569.9,3569.7,0.47350001]
[1762820338619,2.80126268,3569.9,3569.8,0.4777]
[1762820339561,0.56128145,3570.2,3569.8,0.4777]
[1762820339562,0.56128145,3570.2,3569.8,0.9512]
[1762820339867,2.80119891,3569.9,3569.8,0.4735]
[1762820340247,0.001,3570.2,3569.8,0.9512]
[1762820340458,0.001,3570.2,3570.1,0.4777]
[1762820340624,0.001,3570.2,3570.1,0.6648]
[1762820340822,0.001,3570.2,3570.1,1.6383]
[1762820341020,0.001,3570.2,3570.1,1.80213]
[1762820341224,0.001,3570.2,3570.1,4.99063726]
[1762820341481,0.001,3570.2,3570.1,1.80213]
[1762820341625,2.80196353,3570.2,3570.1,1.1648]
[1762820341829,0.001,3570.2,3570.1,1.1648]
[1762820342248,2.80196353,3570.2,3570.1,1.6383]
[1762820342463,0.001,3570.2,3570.1,1.6383]
[1762820344595,0.001,3570.2,3570.1,5.67625994]
[1762820344735,0.001,3570.2,3570.1,6.93597194]
[1762820344943,0.001,3570.6,3570.5,3.20623218]
[1762820345234,0.001,3570.6,3570.5,1.383204]
[1762820345539,0.001,3570.6,3569.7,1e-08]
[1762820345540,2.80094404,3570.3,3569.7,1e-08]
[1762820345736,2.80110728,3570.1,3569.8,0.5]
[1762820345931,2.80105816,3570.1,3569.8,0.5]
[1762820346135,2.80105816,3570.1,3570.0,0.4777]
[1762820346352,0.001,3570.6,3570.0,0.4777]
[1762820346353,2.80094883,3570.3,3570.0,0.4777]
[1762820346569,0.001,3570.6,3570.5,0.4777]
[1762820346771,0.001,3570.6,3570.5,1.4512]
[1762820347762,0.001,3570.6,3570.5,5.72040028]
[1762820347967,0.001,3570.6,3570.5,2.56200061]
[1762820348168,0.001,3570.6,3570.5,4.65743218]
[1762820349087,0.001,3570.6,3570.5,5.01510367]
[1762820349287,0.001,3570.6,3570.5,4.65743218]
[1762820349691,0.001,3570.6,3570.5,0.4777]
[1762820349890,0.001,3570.6,3570.5,1.4512]
[1762820350092,0.001,3570.6,3570.5,0.9777]
[1762820350701,0.2579,3570.6,3569.7,1e-08]
[1762820351004,2.80127094,3569.9,3569.7,1e-08]
[1762820351205,0.81614692,3570.6,3569.7,1e-08]
[1762820351508,2.80118257,3570.0,3569.7,1e-08]
[1762820352403,2.8012036,3569.9,3569.7,1e-08]
[1762820352613,2.80127738,3569.8,3569.7,1e-08]
[1762820352926,3.08630929,3569.8,3569.7,1e-08]
[1762820353373,0.0517,3569.9,3569.7,1e-08]
[1762820353374,2.80121206,3569.9,3569.7,1e-08]
[1762820353703,0.87923306,3570.5,3569.7,1e-08]
[1762820353869,0.4891,3570.5,3569.7,0.50000001]
[1762820354270,2.80125637,3569.9,3569.7,0.50000001]
[1762820354585,2.80112437,3570.0,3569.7,0.50000001]
[1762820355106,2.80170556,3570.6,3569.9,0.4777]
[1762820355272,0.001,3570.6,3570.4,0.5]
[1762820355478,0.001,3570.6,3570.5,0.6648]
[1762820355827,0.001,3570.6,3570.5,1.6383]
[1762820358078,2.80164975,3570.6,3570.5,0.4777]
[1762820358411,2.80090894,3570.3,3570.2,0.5]
[1762820358714,0.001,3570.6,3569.8,3.27476666]
[1762820358916,2.80164975,3570.6,3570.5,0.4777]
[1762820359082,2.80164975,3570.6,3570.5,0.9777]
[1762820359479,3.25684975,3570.6,3569.8,0.4735]
[1762820359702,2.80088507,3570.3,3570.0,0.5]
[1762820359901,0.02813191,3570.2,3570.0,0.5]
[1762820360101,0.02813191,3570.2,3569.7,1e-08]
[1762820360102,2.80104198,3570.1,3569.7,1e-08]
[1762820360290,2.8012569,3569.9,3569.7,1e-08]
[1762820360494,2.80114295,3570.0,3569.7,1e-08]
[1762820360701,2.8012048,3569.9,3569.7,1e-08]
[1762820360908,2.80127738,3569.8,3569.7,1e-08]
[1762820362316,2.82940929,3569.8,3569.7,1e-08]
[1762820362481,3.08460929,3569.8,3569.7,1e-08]
[1762820362829,2.80127738,3569.8,3569.7,1e-08]
[1762820363498,0.80465144,3570.4,3569.7,0.47770001]
[1762820363699,2.80125045,3569.9,3569.7,0.47770001]
[1762820364017,0.54762321,3570.3,3569.7,0.47770001]
[1762820364535,2.80127738,3569.8,3569.7,0.47770001]
[1762820365499,2.80127738,3569.8,3569.7,0.93410001]
[1762820365713,2.80122258,3569.9,3569.7,0.93410001]
[1762820366327,2.80122258,3569.9,3569.8,0.4588]
[1762820366881,2.80114645,3570.0,3569.8,0.4588]
[1762820367118,0.54762321,3570.3,3569.8,0.4588]
[1762820367279,0.54762321,3570.3,3569.7,0.45640001]
[1762820367280,0.001,3570.6,3570.2,0.6462]
[1762820367479,0.001,3570.6,3570.4,0.5]
[1762820367480,2.80074576,3570.5,3570.4,0.5]
[1762820368006,2.80074576,3570.5,3570.4,0.9588]
[1762820368217,0.001,3570.6,3570.4,0.9588]
[1762820368532,2.80170394,3570.6,3570.4,0.9588]
[1762820368699,2.80164975,3570.6,3570.5,0.4588]
[1762820368897,0.001,3570.6,3570.5,0.4588]
[1762820369213,0.001,3570.6,3570.5,1.4152]
[1762820370209,3.60655724,3570.6,3570.2,0.5]
[1762820370527,3.60655724,3570.6,3569.7,0.45640001]
[1762820370528,2.80089919,3570.3,3570.0,0.5]
[1762820370737,2.82910495,3570.2,3570.0,0.5]
[1762820370936,0.02813191,3570.2,3569.7,0.50000001]
[1762820371236,0.02813191,3570.2,3569.8,0.4564]
[1762820371531,0.56120228,3570.6,3569.8,0.4564]
[1762820371532,2.80072818,3570.5,3570.4,0.5]
[1762820371699,0.5602319,3570.5,3570.4,0.5]
[1762820371900,0.001,3570.6,3570.4,0.9588]
[1762820372264,0.001,3570.6,3570.4,0.5]
[1762820372439,0.2447,3570.5,3570.4,0.5]
[1762820372638,0.001,3570.6,3570.4,0.5]
[1762820372791,2.80168615,3570.6,3570.4,0.5]
[1762820372992,2.80072818,3570.5,3570.4,0.5]
[1762820373211,2.8009798,3570.2,3569.8,0.4564]
[1762820373425,2.80080663,3570.4,3570.0,0.5]
[1762820373624,3.29546515,3570.4,3569.7,1e-08]
[1762820373788,3.04597738,3569.8,3569.7,1e-08]
[1762820374842,0.4956,3570.6,3569.7,0.95880001]
[1762820375033,0.1755312,3570.5,3569.7,0.91520001]
[1762820375324,2.80080663,3570.4,3570.3,0.5]
[1762820375935,2.80090483,3570.3,3569.8,0.4564]
[1762820376135,3.32346009,3570.5,3569.7,0.50000001]
[1762820376334,3.32346009,3570.5,3569.7,1e-08]
[1762820376517,2.8012646,3569.9,3569.7,1e-08]
[1762820376717,3.04597738,3569.8,3569.7,1e-08]
[1762820377229,3.07410929,3569.8,3569.7,1e-08]
[1762820377740,3.68271108,3569.8,3569.7,1e-08]
[1762820378424,4.17481108,3569.8,3569.7,1e-08]
[1762820380838,3.46651788,3570.8,3569.7,1e-08]
[1762820380839,1.260712,3570.6,3569.7,0.95880001]
[1762820381077,2.8016746,3570.6,3569.7,0.95880001]
[1762820381336,0.001,3570.6,3569.8,0.4564]
[1762820381542,0.001,3570.6,3570.5,0.4588]
[1762820381845,0.001,3570.6,3570.5,1.1462]
[1762820382046,0.001,3570.6,3570.5,1.99729796]
[1762820382210,0.001,3570.6,3570.5,2.39005279]
[1762820382647,0.001,3570.6,3570.5,1.99729796]
[1762820382848,0.001,3570.6,3570.5,1.6026]
[1762820385948,0.001,3570.6,3570.5,4.80883218]
[1762820386129,0.001,3570.6,3570.5,5.20158701]
[1762820386997,0.001,3570.6,3570.5,6.48930629]
[1762820387197,0.001,3570.6,3570.5,6.46129901]
[1762820387428,0.001,3570.6,3570.5,7.70171989]
[1762820388000,0.001,3570.6,3570.5,11.11659689]
[1762820388328,0.001,3570.6,3570.5,10.82439489]
[1762820388528,0.001,3570.6,3570.5,7.70171989]
[1762820388740,0.001,3570.6,3570.5,7.30896506]
[1762820390074,0.001,3571.0,3570.9,4.96563046]
[1762820390363,0.001,3571.0,3570.9,10.63755657]
[1762820390715,0.001,3571.4,3571.3,4.9653168]
[1762820391054,0.001,3571.4,3571.3,9.48910283]
[1762820391358,0.001,3571.4,3571.3,9.57251676]
[1762820392317,0.001,3571.4,3571.3,3.317816]
[1762820392518,0.001,3571.4,3571.3,6.4496984]
[1762820393330,0.001,3571.4,3571.3,16.52722621]
[1762820393534,0.001,3571.4,3571.3,14.38754458]
[1762820394319,0.001,3571.4,3571.3,9.93879836]
[1762820394520,0.001,3571.4,3571.3,12.74015936]
[1762820394818,0.001,3571.4,3571.3,13.06929958]
[1762820395372,0.001,3571.4,3571.3,12.74015936]
[1762820395520,0.001,3571.4,3571.3,16.63472836]
[1762820396568,0.001,3571.4,3571.3,14.66204136]
[1762820397550,0.001,3571.4,3571.3,16.79964736]
[1762820397756,0.001,3571.4,3571.3,16.55300036]
[1762820397956,0.001,3571.4,3571.3,14.66204136]
[1762820398264,0.001,3571.4,3571.3,14.31929136]
[1762820398836,0.001,3571.4,3571.3,11.58470921]
[1762820399030,0.001,3571.4,3571.3,11.93360921]
[1762820399230,0.001,3571.4,3571.3,11.66432621]
[1762820399430,0.001,3571.4,3571.3,9.54174421]
[1762820399848,0.001,3571.4,3571.3,11.62232621]
[1762820400078,0.001,3571.4,3571.3,9.54174421]
[1762820400255,0.001,3571.4,3571.3,11.62232621]
[1762820400579,0.001,3571.4,3571.3,11.77357721]
[1762820400931,0.01,3571.9,3571.8,3.75521283]
[1762820401143,0.01,3571.9,3571.8,9.25487208]
[1762820401331,0.01,3571.9,3571.8,14.31092223]
[1762820401534,0.01,3571.9,3571.8,15.84716923]
[1762820401775,0.01,3571.9,3571.8,12.64382123]
[1762820402089,0.4709,3571.9,3571.3,0.3317816]
[1762820402225,0.4709,3571.9,3571.8,0.5]
[1762820402767,0.7928,3571.9,3571.8,0.5]
[1762820402954,0.306,3571.9,3571.8,0.5]
[1762820403437,0.306,3571.9,3571.6,0.5]
[1762820403438,0.7928,3571.9,3571.6,0.5]
[1762820403774,0.01,3571.9,3571.8,0.9924]
[1762820404675,0.01,3571.9,3571.8,4.64222867]
[1762820405166,0.01,3571.9,3571.8,5.01973559]
[1762820405375,0.01,3571.9,3571.8,5.04773267]
[1762820405579,0.01,3571.9,3571.8,35.17051859]
[1762820405865,0.01,3571.9,3571.8,29.1030384]
[1762820406373,0.01,3571.9,3571.8,19.48975859]
[1762820406668,0.01,3571.9,3571.8,20.81787359]
[1762820406877,0.01,3571.9,3571.8,3.30724778]
[1762820407031,0.01,3571.9,3571.8,5.50732483]
[1762820407232,0.01,3571.9,3571.8,28.91925664]
[1762820407445,0.011,3571.9,3571.8,12.52573127]
[1762820407649,0.011,3571.9,3571.8,15.37289027]
[1762820407938,0.011,3571.9,3571.8,14.22191027]
[1762820408341,0.011,3571.9,3571.8,16.07528189]
[1762820408567,0.011,3571.9,3571.8,11.54899289]
[1762820408749,0.011,3571.9,3571.8,16.21732089]
[1762820409378,0.011,3571.9,3571.8,16.61136114]
[1762820409688,0.011,3571.9,3571.8,24.47381414]
[1762820409871,0.011,3571.9,3571.8,22.51903792]
[1762820410055,0.011,3571.9,3571.8,18.32566992]
[1762820410456,0.011,3571.9,3571.8,17.56088992]
[1762820410676,0.011,3571.9,3571.8,18.35191692]
[1762820410858,0.011,3571.9,3571.8,17.64484492]
[1762820411042,0.011,3571.9,3571.8,17.96298514]
[1762820411648,0.011,3571.9,3571.8,21.91996014]
[1762820412595,0.011,3571.9,3571.8,21.60181992]
[1762820412765,0.011,3571.9,3571.8,25.46455892]
[1762820413094,0.011,3571.9,3571.8,24.71733092]
[1762820413389,0.001,3572.3,3572.2,8.10665714]
[1762820413560,0.001,3572.3,3572.2,14.91323414]
[1762820413883,0.001,3572.3,3572.2,15.59197122]
[1762820414768,0.001,3572.3,3572.2,15.62222522]
[1762820414976,0.001,3572.3,3572.2,14.85546922]
[1762820415183,0.001,3572.3,3572.2,16.40718912]
[1762820415892,0.001,3572.3,3572.2,14.65849312]
[1762820417071,0.001,3572.3,3572.2,30.99699137]
[1762820417391,0.001,3572.3,3572.2,27.30392559]
[1762820417589,0.001,3572.3,3572.2,27.41590782]
[1762820417892,0.001,3572.3,3572.2,7.51433123]
[1762820418197,0.001,3572.3,3572.2,10.04669523]
[1762820418371,0.001,3572.3,3572.2,7.51433123]
[1762820419289,0.001,3572.3,3572.2,9.76377723]
[1762820419589,0.001,3572.3,3572.2,21.9668637]
[1762820420287,0.001,3572.3,3572.2,21.89685381]
[1762820420455,0.001,3572.3,3572.2,29.55790381]
[1762820420857,0.001,3572.3,3572.2,29.20474381]
[1762820421056,0.001,3572.3,3572.2,27.32216381]
[1762820421293,0.001,3572.3,3572.2,7.51433123]
[1762820421493,0.001,3572.3,3572.2,10.15077704]
[1762820421696,0.001,3572.3,3572.2,4.90111523]
[1762820421899,0.001,3572.3,3572.2,6.56633123]
[1762820424216,0.001,3572.3,3572.2,7.05873123]
[1762820424417,0.001,3572.3,3572.2,12.86177004]
[1762820425119,0.001,3572.3,3572.2,10.60637704]
[1762820425318,0.001,3572.3,3572.2,11.03649949]
[1762820425624,1e-08,3572.8,3572.7,5.48351955]
[1762820425931,1e-08,3572.8,3572.7,9.65195725]
[1762820426085,1e-08,3572.8,3572.7,19.01589492]
[1762820426421,1e-08,3572.8,3572.7,22.22781092]
[1762820426619,1e-08,3572.9,3572.8,5.43344121]
[1762820426803,1e-08,3572.9,3572.8,20.69617979]
[1762820426998,1e-08,3572.9,3572.8,23.44301749]
[1762820427205,1e-08,3572.9,3572.8,14.22504124]
[1762820427396,1e-08,3572.9,3572.8,13.48721091]
[1762820427601,1e-08,3572.9,3572.8,13.97691091]
[1762820427922,1e-08,3572.9,3572.8,8.18027891]
[1762820428103,1e-08,3572.9,3572.8,12.31661591]
[1762820428303,1e-08,3572.9,3572.8,12.84730491]
[1762820429187,1e-08,3572.9,3572.8,17.48488791]
[1762820429394,1e-08,3572.9,3572.8,16.78187391]
[1762820429594,1e-08,3572.9,3572.8,15.58937391]
[1762820429924,1e-08,3572.9,3572.8,14.23563691]
[1762820430298,1e-08,3572.9,3572.8,17.32725091]
[1762820430495,1e-08,3572.9,3572.8,21.18725091]
[1762820430696,1e-08,3572.9,3572.8,21.48304791]
[1762820430924,1e-08,3572.9,3572.8,17.62304791]
[1762820431137,0.01,3573.9,3573.5,0.05]
[1762820431297,0.01,3573.9,3573.5,6.93123928]
[1762820431508,0.01,3573.9,3573.5,40.04775644]
[1762820431818,0.01,3573.9,3573.5,35.53387122]
[1762820432527,0.01,3573.9,3573.5,36.21110444]
[1762820432709,0.01,3573.9,3573.5,35.72530544]
[1762820432909,0.01,3573.9,3573.5,35.40716522]
[1762820433538,0.01,3573.9,3573.5,36.21381022]
[1762820433835,0.01,3573.9,3573.5,37.48821809]
[1762820434332,0.01,3574.9,3574.8,3.70286329]
[1762820434496,0.01,3574.9,3574.8,4.99054888]
[1762820434696,0.01,3574.9,3574.8,7.26116368]
[1762820434892,0.01,3574.9,3574.8,6.94302346]
[1762820435333,0.1752,3574.9,3574.8,2.165216]
[1762820435541,0.6705,3574.9,3574.8,2.165216]
[1762820435911,0.6705,3574.9,3574.8,4.96257529]
[1762820436498,0.6705,3574.9,3574.8,2.165216]
[1762820437667,0.6705,3574.9,3574.8,4.96257529]
[1762820437957,0.6705,3574.9,3574.8,1.759712]
[1762820438160,0.6705,3574.9,3574.8,4.05707129]
[1762820438362,0.1752,3574.9,3574.8,4.96257529]
[1762820438562,0.01,3574.9,3574.8,5.77155621]
[1762820438739,0.01,3574.9,3574.8,5.74358262]
[1762820439634,0.8031,3574.9,3574.8,4.96257529]
[1762820440029,0.8031,3574.9,3574.8,5.34270562]
[1762820440229,0.8031,3574.9,3574.8,4.96257529]
[1762820440651,0.8031,3574.9,3574.8,5.34270562]
[1762820442073,0.678,3574.9,3574.8,5.34270562]
[1762820442364,0.01,3574.9,3574.8,12.10480598]
[1762820442551,0.01,3574.9,3574.8,10.51740998]
[1762820442756,0.176,3574.9,3574.8,5.83159565]
[1762820443053,0.176,3574.9,3574.8,6.21172598]
[1762820443229,0.176,3574.9,3574.8,5.83159565]
[1762820443768,0.6713,3574.9,3574.8,5.01257529]
[1762820444262,0.6723,3574.9,3574.8,5.01257529]
[1762820445287,0.6723,3574.9,3574.8,4.96257529]
[1762820446244,0.177,3574.9,3574.8,4.96257529]
[1762820446980,0.011,3574.9,3574.8,7.44976529]
[1762820447183,0.011,3574.9,3574.8,10.44596675]
[1762820447379,0.011,3574.9,3574.8,10.12782653]
[1762820448947,0.011,3574.9,3574.8,13.20030449]
[1762820449583,0.011,3574.9,3574.8,13.91240163]
[1762820449790,0.011,3574.9,3574.8,13.51836138]
[1762820449994,0.011,3574.9,3574.8,30.44809663]
[1762820450149,0.011,3574.9,3574.8,23.85281863]
[1762820450486,0.011,3574.9,3574.8,22.69117838]
[1762820450674,0.011,3574.9,3574.8,22.69213738]
[1762820450880,0.011,3574.9,3574.8,18.49430863]
[1762820451064,0.011,3574.9,3574.8,18.10026838]
[1762820451264,0.011,3574.9,3574.8,18.49430863]
[1762820451452,1e-08,3574.9,3574.8,17.40208116]
[1762820451800,0.001,3575.3,3575.2,5.01226231]
[1762820451996,0.001,3575.3,3575.2,11.99906519]
[1762820452154,0.001,3575.3,3575.2,27.66312019]
[1762820452555,0.001,3575.3,3575.2,27.93865919]
[1762820452756,0.001,3575.3,3575.2,23.92318319]
[1762820452956,0.001,3575.3,3575.2,20.2012083]
[1762820453158,0.001,3575.3,3575.2,20.2032463]
[1762820453354,0.4811,3575.3,3575.2,19.35381597]
[1762820453554,0.4775,3575.3,3575.2,8.11485609]
[1762820453802,0.6063,3575.3,3575.2,5.01226231]
[1762820454108,0.6063,3575.3,3575.2,4.60675831]
[1762820454263,0.6063,3575.3,3575.2,4.96251439]
[1762820454463,0.6063,3575.3,3575.2,5.01226231]
[1762820454874,0.4775,3575.3,3575.2,5.01226231]
[1762820455195,0.4775,3575.3,3575.2,5.79320882]
[1762820455405,0.001,3575.3,3575.2,5.01226231]
[1762820455697,0.001,3575.3,3575.2,5.40326839]
[1762820456400,0.001,3575.3,3575.2,5.89656839]
[1762820456604,0.001,3575.3,3575.2,7.94353739]
[1762820456906,0.001,3575.3,3575.2,13.37924141]
[1762820457563,0.001,3575.3,3575.2,10.30647241]
[1762820457763,0.001,3575.3,3575.2,10.84977241]
[1762820457969,0.001,3575.3,3575.2,10.35647241]
[1762820458170,0.1088,3575.3,3575.2,10.35647241]
[1762820458471,0.1088,3575.3,3575.2,9.96546633]
[1762820458690,0.1088,3575.3,3575.2,9.91546633]
[1762820459189,0.1088,3575.3,3575.2,9.96546633]
[1762820460282,0.001,3575.3,3575.2,9.96546633]
[1762820461894,0.001,3575.3,3575.2,10.35647241]
[1762820462199,0.1088,3575.3,3575.2,9.96546633]
[1762820462821,0.1088,3575.3,3575.2,6.10546633]
[1762820463040,0.6026,3575.3,3575.2,1.759712]
[1762820463323,0.6026,3575.3,3575.2,0.5]
[1762820463676,3.39956808,3575.3,3575.2,0.5]
[1762820463881,2.79715024,3575.1,3574.9,0.002]
[1762820464090,2.80210279,3575.0,3574.9,0.002]
[1762820464311,3.90958861,3575.0,3574.9,0.002]
[1762820464818,2.79749397,3574.7,3574.5,0.002]
[1762820465118,0.7873,3574.6,3574.5,0.502]
[1762820465276,1.42550634,3574.6,3574.5,0.502]
[1762820465480,4.22302214,3574.6,3574.5,0.502]
[1762820465680,1.42550634,3574.6,3574.5,0.502]
[1762820465900,0.7873,3574.6,3574.5,0.502]
[1762820470926,0.7873,3574.6,3574.5,3.29959406]
[1762820470927,0.2896,3574.6,3574.5,3.29959406]
[1762820471140,0.2896,3574.6,3574.5,3.62784911]
[1762820471455,0.7873,3574.6,3574.5,0.89300608]
[1762820471622,0.7873,3574.6,3574.5,0.502]
[1762820471823,0.7873,3574.6,3574.5,0.002]
[1762820471824,3.5848158,3574.6,3574.5,0.002]
[1762820472137,2.79782888,3574.2,3574.1,0.002]
[1762820472314,2.80472888,3574.2,3574.1,0.002]
[1762820472644,3.30242888,3574.2,3574.1,0.002]
[1762820473245,0.5046,3574.2,3574.1,0.002]
[1762820473418,0.5046,3574.2,3574.1,0.502]
[1762820474620,0.5046,3574.2,3574.1,0.89300608]
[1762820475540,0.5046,3574.2,3574.1,0.502]
[1762820475743,0.5046,3574.2,3574.1,0.002]
[1762820475951,3.30242888,3574.2,3574.1,0.002]
[1762820476325,0.5046,3574.2,3574.1,0.002]
[1762820476534,3.30242888,3574.2,3574.1,0.89300608]
[1762820476730,0.5046,3574.2,3574.1,0.502]
[1762820476946,0.0069,3574.2,3574.1,0.89300608]
[1762820477162,0.1867,3574.6,3574.1,0.84851008]
[1762820477463,0.1867,3574.6,3574.5,0.5]
[1762820477757,0.7893,3574.6,3574.5,1.21926113]
[1762820478746,0.2955,3574.6,3574.5,1.21926113]
[1762820479641,0.2955,3574.6,3574.1,3.25540849]
[1762820479642,0.7893,3574.6,3574.1,0.002]
[1762820479972,2.90552888,3574.2,3574.1,0.002]
[1762820480108,0.1077,3574.2,3574.1,0.002]
[1762820480432,0.1867,3574.8,3574.7,0.5]
[1762820480915,0.7893,3574.8,3574.7,0.5]
[1762820481318,2.79782888,3574.2,3574.1,0.002]
[1762820481615,3.25692888,3574.2,3574.1,0.002]
[1762820481812,3.43206079,3574.2,3574.1,0.002]
[1762820482248,3.40392888,3574.2,3574.1,0.002]
[1762820484451,4.3341524,3574.2,3574.1,0.002]
[1762820486071,4.36228431,3574.2,3574.1,0.002]
[1762820487421,5.62199631,3574.2,3574.1,0.002]
[1762820487649,5.5938644,3574.2,3574.1,0.002]
[1762820488156,5.5938644,3574.2,3573.9,0.002]
[1762820488157,2.79948545,3574.0,3573.9,1e-08]
[1762820488358,5.01323364,3574.0,3573.9,1e-08]
[1762820488535,5.50663364,3574.0,3573.9,1e-08]
[1762820488858,4.24692164,3574.0,3573.9,1e-08]
[1762820489218,7.34753151,3574.0,3573.9,1e-08]
[1762820489456,7.3193996,3574.0,3573.9,1e-08]
[1762820491077,4.24692164,3574.0,3573.9,1e-08]
[1762820499605,4.24792164,3574.0,3573.9,1e-08]
[1762820501201,0.001,3574.0,3573.9,1.46560001]
[1762820501595,0.001,3574.0,3573.9,0.99760001]
[1762820505303,0.001,3574.0,3573.9,1.46560001]
[1762820506582,0.001,3574.0,3573.9,4.26366374]
[1762820506901,0.001,3574.0,3573.9,5.65168235]
[1762820507101,0.001,3574.0,3573.9,5.33211423]
[1762820507872,0.474,3574.0,3573.9,0.50000001]
[1762820508066,3.53608545,3574.0,3573.9,1e-08]
[1762820508279,3.27198545,3574.0,3573.9,1e-08]
[1762820508479,0.001,3574.0,3573.9,0.49760001]
[1762820508803,0.001,3574.0,3573.9,1.46560001]
[1762820509016,0.001,3574.0,3573.9,0.99760001]
[1762820510521,0.001,3574.0,3573.9,1.46560001]
[1762820510818,0.001,3574.0,3573.9,0.50000001]
[1762820513126,2.79898545,3574.0,3573.9,0.50000001]
[1762820513327,2.79898545,3574.0,3573.9,3.70116774]
[1762820513328,0.001,3574.0,3573.9,3.70116774]
[1762820513647,0.001,3574.8,3574.7,5.01265354]
[1762820513810,0.001,3574.8,3574.7,3.00087376]
[1762820514009,0.001,3574.8,3574.7,0.9976]
[1762820514310,0.001,3574.8,3574.7,3.79503754]
[1762820514510,0.001,3574.8,3574.7,4.26303754]
[1762820514712,0.001,3574.8,3574.7,2.17666185]
[1762820514916,0.001,3574.8,3574.7,0.5]
[1762820515227,0.2449,3574.8,3574.7,0.5]
[1762820515833,0.001,3574.8,3574.7,0.5]
[1762820516015,0.001,3574.8,3574.7,6.83933689]
[1762820516205,0.001,3574.8,3574.7,9.00455289]
[1762820516407,0.001,3574.8,3574.7,10.95247682]
[1762820517264,0.001,3574.8,3574.7,10.54978322]
[1762820517639,0.001,3574.8,3574.7,10.94025682]
[1762820517868,0.001,3574.8,3574.7,19.53779082]
[1762820518769,0.001,3574.8,3574.7,25.05873482]
[1762820519640,0.001,3574.8,3574.7,18.04719382]
[1762820519830,0.001,3574.8,3574.7,18.03719382]
[1762820520648,0.001,3575.2,3575.1,0.455504]
[1762820520879,0.001,3575.2,3575.1,10.57857815]
[1762820521148,0.001,3575.2,3575.1,27.93163991]
[1762820521467,0.001,3575.2,3575.1,17.71780991]
[1762820521666,0.001,3575.2,3575.1,18.81609691]
[1762820521894,0.001,3575.2,3575.1,18.17614491]
[1762820522189,0.001,3575.6,3575.5,5.01202763]
[1762820522393,0.001,3575.6,3575.5,9.74840066]
[1762820522691,0.01,3576.9,3575.5,9.74840066]
[1762820522692,0.01,3576.9,3575.5,20.80253303]
[1762820522894,0.01,3576.9,3576.8,4.21769912]
[1762820523099,0.01,3576.9,3576.8,11.89401782]
[1762820523296,0.01,3576.9,3576.8,12.24921803]
[1762820523481,0.01,3576.9,3576.8,25.58896645]
[1762820523684,0.01,3576.9,3576.8,25.81248324]
[1762820523887,0.01,3576.9,3576.8,17.10187445]
[1762820524398,0.01,3576.9,3576.8,15.89606624]
[1762820524697,0.1876,3578.8,3577.8,3.75051769]
[1762820524901,0.1876,3578.8,3577.8,8.16993017]
[1762820525098,0.1876,3578.8,3577.8,9.02706639]
[1762820525415,0.1876,3578.8,3577.8,5.83536635]
[1762820525718,0.4625,3578.7,3577.8,8.63038004]
[1762820525876,0.4625,3578.7,3577.8,1.605304]
[1762820526217,0.01,3578.9,3577.8,7.97581704]
[1762820526361,0.01,3578.9,3577.8,9.64027989]
[1762820527621,0.01,3578.9,3577.8,17.04660389]
[1762820527816,0.01,3578.9,3577.8,17.36300327]
[1762820528146,0.01,3578.9,3577.8,19.06242042]